[Event "Betsys MČR v online bleskovém šachu 2021"]
[Site "Chess.com"]
[Date "2021.04.17"]
[Round "6"]
[White "Johanna94"]
[Black "CZpeeeter"]
[Result "1-0"]
[WhiteElo "2062"]
[BlackElo "1730"]
[TimeControl "180+1"]
[EndTime "9:58:15 PDT"]
[Termination "Uživatel Johanna94 zvítězil na čas"]

1. d4 {[%clk 0:03:00.9]} 1... Nf6 {[%clk 0:02:58.4]} 2. c4 {[%clk 0:03:01.3]}
2... g6 {[%clk 0:02:53]} 3. Nf3 {[%clk 0:03:00.1]} 3... Bg7 {[%clk 0:02:49.7]}
4. Nc3 {[%clk 0:03:00.2]} 4... d5 {[%clk 0:02:49.2]} 5. cxd5 {[%clk 0:03:00]}
5... Nxd5 {[%clk 0:02:49.2]} 6. Bd2 {[%clk 0:03:00.6]} 6... O-O {[%clk
0:02:48.1]} 7. Rc1 {[%clk 0:03:00.3]} 7... b6 {[%clk 0:02:40]} 8. e4 {[%clk
0:02:57.7]} 8... Nxc3 {[%clk 0:02:39.2]} 9. Bxc3 {[%clk 0:02:57.9]} 9... Bb7
{[%clk 0:02:33.2]} 10. Bd3 {[%clk 0:02:51.6]} 10... c5 {[%clk 0:02:25.1]} 11.
dxc5 {[%clk 0:02:35.4]} 11... bxc5 {[%clk 0:02:18.2]} 12. Bxg7 {[%clk
0:02:21.4]} 12... Kxg7 {[%clk 0:02:17.9]} 13. Rxc5 {[%clk 0:02:20.9]} 13... Nd7
{[%clk 0:02:14.3]} 14. Rc2 {[%clk 0:02:17.3]} 14... Nf6 {[%clk 0:02:13.1]} 15.
Qe2 {[%clk 0:02:04.2]} 15... Qd7 {[%clk 0:02:02.5]} 16. O-O {[%clk 0:01:59.2]}
16... Rfd8 {[%clk 0:02:00.4]} 17. Bb5 {[%clk 0:01:50.5]} 17... Qe6 {[%clk
0:01:49.9]} 18. e5 {[%clk 0:01:26.5]} 18... Nh5 {[%clk 0:01:34.8]} 19. Re1
{[%clk 0:01:19.9]} 19... Nf4 {[%clk 0:01:14.4]} 20. Qe3 {[%clk 0:00:48.5]} 20...
Nd5 {[%clk 0:01:06.8]} 21. Qc1 {[%clk 0:00:43.8]} 21... Nb4 {[%clk 0:01:02.2]}
22. Rc4 {[%clk 0:00:34.4]} 22... Rac8 {[%clk 0:00:42.3]} 23. Rxc8 {[%clk
0:00:32.6]} 23... Rxc8 {[%clk 0:00:41.7]} 24. Qf4 {[%clk 0:00:32.4]} 24... Nxa2
{[%clk 0:00:36.3]} 25. Ng5 {[%clk 0:00:27.6]} 25... Qf5 {[%clk 0:00:33.3]} 26.
Qxf5 {[%clk 0:00:24.6]} 26... gxf5 {[%clk 0:00:33.4]} 27. Bd7 {[%clk 0:00:25.2]}
27... Rd8 {[%clk 0:00:27.9]} 28. Bxf5 {[%clk 0:00:25.1]} 28... h6 {[%clk
0:00:28]} 29. Ne4 {[%clk 0:00:21.9]} 29... e6 {[%clk 0:00:26.2]} 30. Bg4 {[%clk
0:00:21.6]} 30... Bxe4 {[%clk 0:00:23.7]} 31. Rxe4 {[%clk 0:00:21.1]} 31... Rd2
{[%clk 0:00:17.1]} 32. b3 {[%clk 0:00:17]} 32... Rb2 {[%clk 0:00:16]} 33. h3
{[%clk 0:00:15.3]} 33... Rxb3 {[%clk 0:00:15.3]} 34. Ra4 {[%clk 0:00:15.9]}
34... Nc3 {[%clk 0:00:13]} 35. Rxa7 {[%clk 0:00:15.7]} 35... Rb1+ {[%clk
0:00:12.8]} 36. Kh2 {[%clk 0:00:15.9]} 36... Nd5 {[%clk 0:00:12.6]} 37. Bxe6
{[%clk 0:00:15.8]} 37... Re1 {[%clk 0:00:07.6]} 38. Rxf7+ {[%clk 0:00:14.7]}
38... Kg6 {[%clk 0:00:07.3]} 39. Bxd5 {[%clk 0:00:15.1]} 39... Rxe5 {[%clk
0:00:07.5]} 40. Ba2 {[%clk 0:00:15.2]} 40... Re2 {[%clk 0:00:07.6]} 41. Ra7
{[%clk 0:00:14.9]} 41... Kg5 {[%clk 0:00:07]} 42. Kg3 {[%clk 0:00:15]} 42... h5
{[%clk 0:00:06.6]} 43. Ra5+ {[%clk 0:00:15]} 43... Kg6 {[%clk 0:00:06.9]} 44. h4
{[%clk 0:00:15.6]} 44... Rd2 {[%clk 0:00:06.2]} 45. Rg5+ {[%clk 0:00:15.7]}
45... Kf6 {[%clk 0:00:06]} 46. Bd5 {[%clk 0:00:16.4]} 46... Rd3+ {[%clk
0:00:05.7]} 47. f3 {[%clk 0:00:16.9]} 47... Rd4 {[%clk 0:00:04]} 48. Be4 {[%clk
0:00:17.1]} 48... Rd1 {[%clk 0:00:03.6]} 49. Kf4 {[%clk 0:00:17.7]} 49... Rg1
{[%clk 0:00:02.7]} 50. Rg6+ {[%clk 0:00:18.4]} 50... Kf7 {[%clk 0:00:02.6]} 51.
g4 {[%clk 0:00:19.1]} 51... hxg4 {[%clk 0:00:02.2]} 52. Rxg4 {[%clk 0:00:19.3]}
52... Rf1 {[%clk 0:00:01.7]} 53. Kg5 {[%clk 0:00:19.5]} 53... Kg7 {[%clk
0:00:01.3]} 54. h5 {[%clk 0:00:20.1]} 1-0

[Event "Betsys MČR v online bleskovém šachu 2021"]
[Site "Chess.com"]
[Date "2021.04.17"]
[Round "6"]
[White "Ondre2836"]
[Black "Tassa15"]
[Result "0-1"]
[WhiteElo "1233"]
[BlackElo "872"]
[TimeControl "180+1"]
[EndTime "9:58:17 PDT"]
[Termination "Uživatel Tassa15 zvítězil na čas"]

1. e4 {[%clk 0:03:00.9]} 1... d5 {[%clk 0:02:58.1]} 2. exd5 {[%clk 0:02:57.5]}
2... Qxd5 {[%clk 0:02:56.9]} 3. Nc3 {[%clk 0:02:56.5]} 3... Qd6 {[%clk
0:02:55.9]} 4. d4 {[%clk 0:02:53.9]} 4... c6 {[%clk 0:02:55.6]} 5. Nf3 {[%clk
0:02:48.1]} 5... Bg4 {[%clk 0:02:53.7]} 6. Be3 {[%clk 0:02:37.8]} 6... Nf6
{[%clk 0:02:51.3]} 7. h3 {[%clk 0:02:36.5]} 7... Bh5 {[%clk 0:02:44]} 8. g4
{[%clk 0:02:34.2]} 8... Bg6 {[%clk 0:02:43.4]} 9. Bg2 {[%clk 0:02:33]} 9... e6
{[%clk 0:02:40.7]} 10. Ne5 {[%clk 0:02:28.2]} 10... Nbd7 {[%clk 0:02:37.4]} 11.
Nf3 {[%clk 0:02:22.8]} 11... Qc7 {[%clk 0:02:28.3]} 12. Qd2 {[%clk 0:02:21.1]}
12... Bd6 {[%clk 0:02:25.4]} 13. O-O-O {[%clk 0:02:18.8]} 13... O-O-O {[%clk
0:02:23.1]} 14. Rhe1 {[%clk 0:02:16.2]} 14... a6 {[%clk 0:02:21.9]} 15. Ng5
{[%clk 0:01:53.1]} 15... h6 {[%clk 0:02:08.7]} 16. Nf3 {[%clk 0:01:49.7]} 16...
Qa5 {[%clk 0:01:57]} 17. Kb1 {[%clk 0:01:48.1]} 17... Bb4 {[%clk 0:01:55.2]} 18.
Bf4 {[%clk 0:01:33.7]} 18... Bxc3 {[%clk 0:01:51.5]} 19. Qxc3 {[%clk 0:01:33.3]}
19... Qxc3 {[%clk 0:01:50.7]} 20. bxc3 {[%clk 0:01:33.3]} 20... Nd5 {[%clk
0:01:46.9]} 21. Bd2 {[%clk 0:01:28.9]} 21... N7b6 {[%clk 0:01:46.1]} 22. Kb2
{[%clk 0:01:22.4]} 22... Nc4+ {[%clk 0:01:42.3]} 23. Kb3 {[%clk 0:01:19.9]}
23... Ndb6 {[%clk 0:01:41.3]} 24. Ne5 {[%clk 0:01:12.9]} 24... Nxe5 {[%clk
0:01:36.7]} 25. dxe5 {[%clk 0:01:11.7]} 25... f6 {[%clk 0:01:28.4]} 26. exf6
{[%clk 0:01:06.1]} 26... gxf6 {[%clk 0:01:25.9]} 27. Rxe6 {[%clk 0:01:05]} 27...
Rhf8 {[%clk 0:01:17.9]} 28. h4 {[%clk 0:00:56.2]} 28... Bh7 {[%clk 0:01:11.3]}
29. Ree1 {[%clk 0:00:48.1]} 29... Bg8+ {[%clk 0:01:07]} 30. Kb2 {[%clk
0:00:39.1]} 30... Nc4+ {[%clk 0:01:05.9]} 31. Kc1 {[%clk 0:00:36.8]} 31... Nxd2
{[%clk 0:01:05.4]} 32. Rxd2 {[%clk 0:00:35.6]} 32... Rd7 {[%clk 0:01:02.5]} 33.
Rxd7 {[%clk 0:00:30.9]} 33... Kxd7 {[%clk 0:01:01.3]} 34. Kb2 {[%clk 0:00:30.3]}
34... Kc7 {[%clk 0:00:56.3]} 35. a4 {[%clk 0:00:27.9]} 35... Rd8 {[%clk
0:00:53.3]} 36. Bf3 {[%clk 0:00:18]} 36... Rd2 {[%clk 0:00:51.1]} 37. Re2 {[%clk
0:00:16.9]} 37... Rd6 {[%clk 0:00:49.1]} 38. Re3 {[%clk 0:00:15.4]} 38... Bc4
{[%clk 0:00:48.5]} 39. Re7+ {[%clk 0:00:13]} 39... Kb6 {[%clk 0:00:44.7]} 40.
Rh7 {[%clk 0:00:12]} 40... Rd2 {[%clk 0:00:41]} 41. Rxh6 {[%clk 0:00:10.7]}
41... Rxf2 {[%clk 0:00:40.6]} 42. Rxf6 {[%clk 0:00:10.3]} 42... Rh2 {[%clk
0:00:36.5]} 43. Rf4 {[%clk 0:00:08.6]} 43... Be6 {[%clk 0:00:30.5]} 44. Be2
{[%clk 0:00:05.9]} 44... Rxe2 {[%clk 0:00:27.4]} 45. Rf6 {[%clk 0:00:04.8]}
45... Bxg4 {[%clk 0:00:26.1]} 46. Rg6 {[%clk 0:00:04.6]} 46... Bf5 {[%clk
0:00:24.7]} 47. Rg5 {[%clk 0:00:04.3]} 47... Bxc2 {[%clk 0:00:21.1]} 48. h5
{[%clk 0:00:04.1]} 48... Bg6+ {[%clk 0:00:19.4]} 49. Kb3 {[%clk 0:00:02.4]}
49... Bf7+ {[%clk 0:00:19]} 50. Ka3 {[%clk 0:00:01.3]} 50... Bc4 {[%clk
0:00:16.6]} 0-1

[Event "Betsys MČR v online bleskovém šachu 2021"]
[Site "Chess.com"]
[Date "2021.04.17"]
[Round "6"]
[White "Marcus_Aurelius_CZ"]
[Black "domecek"]
[Result "0-1"]
[WhiteElo "1408"]
[BlackElo "1964"]
[TimeControl "180+1"]
[EndTime "9:58:20 PDT"]
[Termination "Uživatel domecek zvítězil na čas"]

1. e4 {[%clk 0:03:00.9]} 1... c6 {[%clk 0:02:12]} 2. d4 {[%clk 0:02:54.9]} 2...
d5 {[%clk 0:02:11.9]} 3. e5 {[%clk 0:02:55]} 3... g6 {[%clk 0:02:11.4]} 4. Bd3
{[%clk 0:02:53.9]} 4... h5 {[%clk 0:02:10.8]} 5. Nf3 {[%clk 0:02:53.4]} 5... Nh6
{[%clk 0:02:09.4]} 6. Bxh6 {[%clk 0:02:46.1]} 6... Bxh6 {[%clk 0:02:08.6]} 7.
Nbd2 {[%clk 0:02:44.8]} 7... Bf5 {[%clk 0:02:06.9]} 8. Bxf5 {[%clk 0:02:43.3]}
8... gxf5 {[%clk 0:02:07.8]} 9. Nh4 {[%clk 0:02:38.1]} 9... e6 {[%clk
0:02:07.5]} 10. g3 {[%clk 0:02:33.2]} 10... Nd7 {[%clk 0:02:03.2]} 11. Ng2
{[%clk 0:02:31.4]} 11... Qb6 {[%clk 0:01:55.7]} 12. Nb3 {[%clk 0:02:16.8]} 12...
c5 {[%clk 0:01:47.8]} 13. dxc5 {[%clk 0:02:14.3]} 13... Nxc5 {[%clk 0:01:47.1]}
14. Nxc5 {[%clk 0:02:07.2]} 14... Qxc5 {[%clk 0:01:48]} 15. O-O {[%clk
0:01:55.5]} 15... Bg7 {[%clk 0:01:45.7]} 16. Re1 {[%clk 0:01:42.9]} 16... Rc8
{[%clk 0:01:45.2]} 17. c3 {[%clk 0:01:39.1]} 17... Qc7 {[%clk 0:01:42.3]} 18.
Qe2 {[%clk 0:01:34.7]} 18... a6 {[%clk 0:01:39.3]} 19. Nf4 {[%clk 0:01:33.3]}
19... h4 {[%clk 0:01:37.3]} 20. Nh5 {[%clk 0:01:32.6]} 20... Kf8 {[%clk
0:01:29.4]} 21. Nxg7 {[%clk 0:01:23.4]} 21... Kxg7 {[%clk 0:01:30.3]} 22. Qf3
{[%clk 0:01:12.9]} 22... Qc4 {[%clk 0:01:22.3]} 23. gxh4 {[%clk 0:00:36.8]}
23... Qxh4 {[%clk 0:01:18.6]} 24. Qg3+ {[%clk 0:00:36.3]} 24... Kf8 {[%clk
0:01:15.4]} 25. Qxh4 {[%clk 0:00:28.6]} 25... Rxh4 {[%clk 0:01:16.3]} 26. Kg2
{[%clk 0:00:28.4]} 26... Ke7 {[%clk 0:01:14.2]} 27. Kg3 {[%clk 0:00:27.4]} 27...
Rg4+ {[%clk 0:01:12.2]} 28. Kf3 {[%clk 0:00:24]} 28... Rh8 {[%clk 0:01:12.1]}
29. Rh1 {[%clk 0:00:22.8]} 29... Rh3+ {[%clk 0:01:10]} 30. Ke2 {[%clk
0:00:20.4]} 30... Re4+ {[%clk 0:01:00.4]} 31. Kd2 {[%clk 0:00:17.6]} 31... Rxe5
{[%clk 0:01:00]} 32. Rae1 {[%clk 0:00:16.8]} 32... Re4 {[%clk 0:00:58.4]} 33.
Rxe4 {[%clk 0:00:14.7]} 33... fxe4 {[%clk 0:00:59.3]} 34. Ke2 {[%clk 0:00:14.4]}
34... Kf6 {[%clk 0:00:52.7]} 35. Kf1 {[%clk 0:00:13.7]} 35... Ke5 {[%clk
0:00:48.7]} 36. Kg2 {[%clk 0:00:13.5]} 36... Rh8 {[%clk 0:00:48.1]} 37. h4
{[%clk 0:00:13.3]} 37... f5 {[%clk 0:00:44.9]} 38. h5 {[%clk 0:00:12.8]} 38...
Rh6 {[%clk 0:00:43.1]} 39. Kg3 {[%clk 0:00:11.5]} 39... Kf6 {[%clk 0:00:39.7]}
40. Kf4 {[%clk 0:00:10.1]} 40... e5+ {[%clk 0:00:39.1]} 41. Ke3 {[%clk
0:00:10.2]} 41... f4+ {[%clk 0:00:37.2]} 42. Ke2 {[%clk 0:00:09.7]} 42... Kf5
{[%clk 0:00:36.3]} 43. f3 {[%clk 0:00:09]} 43... exf3+ {[%clk 0:00:35]} 44. Kxf3
{[%clk 0:00:08.5]} 44... e4+ {[%clk 0:00:35.2]} 45. Ke2 {[%clk 0:00:08.5]} 45...
Kg5 {[%clk 0:00:31.5]} 46. Rg1+ {[%clk 0:00:07.9]} 46... Kxh5 {[%clk 0:00:28.9]}
47. Rg7 {[%clk 0:00:08.1]} 47... Rb6 {[%clk 0:00:27.8]} 48. Rf7 {[%clk
0:00:06.6]} 48... Rxb2+ {[%clk 0:00:25.6]} 49. Ke1 {[%clk 0:00:05.9]} 49... Kg4
{[%clk 0:00:23.3]} 50. Rg7+ {[%clk 0:00:05.4]} 50... Kf3 {[%clk 0:00:22.4]} 51.
c4 {[%clk 0:00:03.5]} 51... dxc4 {[%clk 0:00:21]} 52. a4 {[%clk 0:00:02.7]}
52... Ke3 {[%clk 0:00:19.3]} 53. Kd1 {[%clk 0:00:01.6]} 53... f3 {[%clk
0:00:18.4]} 0-1

[Event "Betsys MČR v online bleskovém šachu 2021"]
[Site "Chess.com"]
[Date "2021.04.17"]
[Round "6"]
[White "tomasPardubice"]
[Black "Cimrman"]
[Result "1/2-1/2"]
[WhiteElo "2087"]
[BlackElo "2335"]
[TimeControl "180+1"]
[EndTime "9:58:21 PDT"]
[Termination "Remíza patem"]

1. e4 {[%clk 0:02:59.7]} 1... c6 {[%clk 0:02:59.6]} 2. d4 {[%clk 0:02:54.1]}
2... d5 {[%clk 0:03:00.5]} 3. exd5 {[%clk 0:02:54.2]} 3... cxd5 {[%clk
0:03:00.1]} 4. c4 {[%clk 0:02:54.5]} 4... Nf6 {[%clk 0:02:59.7]} 5. Nc3 {[%clk
0:02:54.4]} 5... Nc6 {[%clk 0:02:59.6]} 6. Nf3 {[%clk 0:02:54.7]} 6... Bg4
{[%clk 0:02:59.3]} 7. cxd5 {[%clk 0:02:53.9]} 7... Nxd5 {[%clk 0:02:57.4]} 8.
Qb3 {[%clk 0:02:53.4]} 8... Bxf3 {[%clk 0:02:54.6]} 9. gxf3 {[%clk 0:02:53.2]}
9... e6 {[%clk 0:02:52.9]} 10. Qxb7 {[%clk 0:02:40.8]} 10... Nxd4 {[%clk
0:02:48.7]} 11. Bb5+ {[%clk 0:02:39.7]} 11... Nxb5 {[%clk 0:02:48]} 12. Qc6+
{[%clk 0:02:39.8]} 12... Ke7 {[%clk 0:02:48.4]} 13. Qxb5 {[%clk 0:02:40.2]}
13... Qd7 {[%clk 0:02:48.7]} 14. Nxd5+ {[%clk 0:02:39.5]} 14... Qxd5 {[%clk
0:02:48.9]} 15. Qxd5 {[%clk 0:02:39.4]} 15... exd5 {[%clk 0:02:49.8]} 16. Be3
{[%clk 0:02:39.2]} 16... Ke6 {[%clk 0:02:44.5]} 17. Ke2 {[%clk 0:02:35.2]} 17...
Bb4 {[%clk 0:02:27.3]} 18. Kd3 {[%clk 0:02:30.9]} 18... Rhc8 {[%clk 0:02:24.1]}
19. Rhc1 {[%clk 0:02:29.9]} 19... a5 {[%clk 0:02:04.4]} 20. Rxc8 {[%clk
0:02:27.7]} 20... Rxc8 {[%clk 0:02:03.8]} 21. Rc1 {[%clk 0:02:28.2]} 21... Rb8
{[%clk 0:01:30.3]} 22. Rc6+ {[%clk 0:02:05.9]} 22... Kd7 {[%clk 0:01:29.8]} 23.
Rc2 {[%clk 0:02:03.4]} 23... Bd6 {[%clk 0:01:25.7]} 24. b3 {[%clk 0:02:00.1]}
24... Rb4 {[%clk 0:01:22.2]} 25. Bd2 {[%clk 0:01:55.1]} 25... Rb5 {[%clk
0:01:07]} 26. h3 {[%clk 0:01:54.2]} 26... Bc5 {[%clk 0:01:00.9]} 27. Be3 {[%clk
0:01:52.5]} 27... Bxe3 {[%clk 0:00:52]} 28. fxe3 {[%clk 0:01:52.4]} 28... Kd6
{[%clk 0:00:52.6]} 29. Rg2 {[%clk 0:01:47.2]} 29... g6 {[%clk 0:00:52.1]} 30.
Kc3 {[%clk 0:01:46.4]} 30... h5 {[%clk 0:00:50.6]} 31. f4 {[%clk 0:01:39.1]}
31... Rb8 {[%clk 0:00:49.2]} 32. f5 {[%clk 0:01:34.9]} 32... gxf5 {[%clk
0:00:46.1]} 33. Rg5 {[%clk 0:01:34.9]} 33... Re8 {[%clk 0:00:31]} 34. Kd3 {[%clk
0:01:34]} 34... Ke5 {[%clk 0:00:31]} 35. Rxh5 {[%clk 0:01:33.6]} 35... a4 {[%clk
0:00:27.1]} 36. bxa4 {[%clk 0:01:32.2]} 36... Rb8 {[%clk 0:00:26.3]} 37. Rh7
{[%clk 0:01:19.3]} 37... Rb2 {[%clk 0:00:20.8]} 38. Rxf7 {[%clk 0:01:17.8]}
38... Rxa2 {[%clk 0:00:21]} 39. Ra7 {[%clk 0:01:13.6]} 39... Ra3+ {[%clk
0:00:20.8]} 40. Ke2 {[%clk 0:01:12.8]} 40... Ra2+ {[%clk 0:00:16.3]} 41. Kd3
{[%clk 0:01:10.8]} 41... Rh2 {[%clk 0:00:16.1]} 42. a5 {[%clk 0:01:09.7]} 42...
Rxh3 {[%clk 0:00:16.1]} 43. Kd2 {[%clk 0:01:07.3]} 43... Rh2+ {[%clk 0:00:15.3]}
44. Kd3 {[%clk 0:01:07.1]} 44... Ra2 {[%clk 0:00:15.4]} 45. Ra8 {[%clk
0:01:05.1]} 45... Ra3+ {[%clk 0:00:15.5]} 46. Kd2 {[%clk 0:01:04.2]} 46... Ke4
{[%clk 0:00:15.2]} 47. Re8+ {[%clk 0:00:53.7]} 47... Kf3 {[%clk 0:00:15.4]} 48.
Re5 {[%clk 0:00:53.5]} 48... Ra2+ {[%clk 0:00:15.1]} 49. Kd3 {[%clk 0:00:52.2]}
49... Rxa5 {[%clk 0:00:11.4]} 50. Rxf5+ {[%clk 0:00:52]} 50... Kg4 {[%clk
0:00:11.7]} 51. Rf4+ {[%clk 0:00:38]} 51... Kg5 {[%clk 0:00:11.8]} 52. Kd4
{[%clk 0:00:37.6]} 52... Ra4+ {[%clk 0:00:10.4]} 53. Ke5 {[%clk 0:00:29.9]}
53... Rxf4 {[%clk 0:00:10.6]} 54. exf4+ {[%clk 0:00:29.8]} 54... Kg6 {[%clk
0:00:11]} 55. f5+ {[%clk 0:00:26]} 55... Kf7 {[%clk 0:00:10.5]} 56. Kxd5 {[%clk
0:00:25.8]} 56... Kf6 {[%clk 0:00:11]} 57. Ke4 {[%clk 0:00:26.2]} 57... Kf7
{[%clk 0:00:11.4]} 58. Ke5 {[%clk 0:00:26.4]} 58... Ke7 {[%clk 0:00:11.7]} 59.
f6+ {[%clk 0:00:26.6]} 59... Kf7 {[%clk 0:00:12.2]} 60. Kf5 {[%clk 0:00:26.6]}
60... Kf8 {[%clk 0:00:12.6]} 61. Ke6 {[%clk 0:00:27]} 61... Ke8 {[%clk 0:00:12]}
62. f7+ {[%clk 0:00:27.5]} 62... Kf8 {[%clk 0:00:12.4]} 63. Kf6 {[%clk
0:00:28.1]} 1/2-1/2

[Event "Betsys MČR v online bleskovém šachu 2021"]
[Site "Chess.com"]
[Date "2021.04.17"]
[Round "6"]
[White "tryskomys"]
[Black "jonasstach"]
[Result "0-1"]
[WhiteElo "1521"]
[BlackElo "2009"]
[TimeControl "180+1"]
[EndTime "9:58:21 PDT"]
[Termination "Uživatel jonasstach zvítězil na čas"]

1. e4 {[%clk 0:02:57.4]} 1... e6 {[%clk 0:03:00]} 2. d4 {[%clk 0:02:52.7]} 2...
d5 {[%clk 0:03:00.4]} 3. e5 {[%clk 0:02:51]} 3... c5 {[%clk 0:03:00.2]} 4. c3
{[%clk 0:02:47.4]} 4... Nc6 {[%clk 0:02:59.7]} 5. Nf3 {[%clk 0:02:46.7]} 5...
Qb6 {[%clk 0:02:57.9]} 6. Bd3 {[%clk 0:02:40.2]} 6... Bd7 {[%clk 0:02:56.6]} 7.
dxc5 {[%clk 0:02:35.7]} 7... Bxc5 {[%clk 0:02:52.8]} 8. Qe2 {[%clk 0:02:35.6]}
8... Qc7 {[%clk 0:02:44.6]} 9. O-O {[%clk 0:02:34]} 9... Nge7 {[%clk 0:02:42]}
10. Re1 {[%clk 0:02:32.5]} 10... Ng6 {[%clk 0:02:40.8]} 11. Nbd2 {[%clk
0:02:25.7]} 11... Nf4 {[%clk 0:02:38.3]} 12. Qf1 {[%clk 0:02:18.4]} 12... Nxd3
{[%clk 0:02:37]} 13. Qxd3 {[%clk 0:02:18.2]} 13... Ne7 {[%clk 0:02:34]} 14. Nb3
{[%clk 0:02:10.7]} 14... Bb6 {[%clk 0:02:32.5]} 15. Bf4 {[%clk 0:02:08.6]} 15...
Ng6 {[%clk 0:02:30.5]} 16. Bg3 {[%clk 0:02:08.4]} 16... a6 {[%clk 0:02:21.7]}
17. Nbd4 {[%clk 0:01:59.5]} 17... O-O {[%clk 0:02:16.4]} 18. h4 {[%clk
0:01:51.6]} 18... h6 {[%clk 0:01:53.5]} 19. h5 {[%clk 0:01:49.9]} 19... Ne7
{[%clk 0:01:53.8]} 20. Rad1 {[%clk 0:01:42]} 20... Bb5 {[%clk 0:01:36.7]} 21.
Nxb5 {[%clk 0:01:38.4]} 21... axb5 {[%clk 0:01:35.9]} 22. a3 {[%clk 0:01:34.2]}
22... Qc4 {[%clk 0:01:31.4]} 23. Nd4 {[%clk 0:01:17.2]} 23... Bxd4 {[%clk
0:00:59.7]} 24. cxd4 {[%clk 0:01:11.6]} 24... Rfc8 {[%clk 0:00:47.4]} 25. Qb1
{[%clk 0:00:49.2]} 25... Nf5 {[%clk 0:00:42.3]} 26. Kh2 {[%clk 0:00:29.7]} 26...
Nxd4 {[%clk 0:00:29.6]} 27. Rc1 {[%clk 0:00:28.5]} 27... Qa4 {[%clk 0:00:28.7]}
28. Rxc8+ {[%clk 0:00:26.7]} 28... Rxc8 {[%clk 0:00:29.6]} 29. Qd3 {[%clk
0:00:24.7]} 29... Nf5 {[%clk 0:00:25.4]} 30. Rd1 {[%clk 0:00:20.4]} 30... Qg4
{[%clk 0:00:23.7]} 31. Re1 {[%clk 0:00:16.4]} 31... Qxh5+ {[%clk 0:00:23.4]} 32.
Kg1 {[%clk 0:00:16.6]} 32... Nxg3 {[%clk 0:00:17.7]} 33. Qxg3 {[%clk 0:00:15.2]}
33... Qf5 {[%clk 0:00:15.6]} 34. Qb3 {[%clk 0:00:13]} 34... Qc2 {[%clk
0:00:12.9]} 35. Qxb5 {[%clk 0:00:11.4]} 35... Qc6 {[%clk 0:00:13.2]} 36. Qxc6
{[%clk 0:00:09.1]} 36... Rxc6 {[%clk 0:00:13.6]} 37. Re2 {[%clk 0:00:08.1]}
37... Kf8 {[%clk 0:00:12.9]} 38. f4 {[%clk 0:00:07.8]} 38... Ke7 {[%clk
0:00:13.1]} 39. Kf2 {[%clk 0:00:08]} 39... f6 {[%clk 0:00:13.6]} 40. Ke3 {[%clk
0:00:07.8]} 40... g5 {[%clk 0:00:13.9]} 41. exf6+ {[%clk 0:00:07.1]} 41... Kxf6
{[%clk 0:00:14.4]} 42. fxg5+ {[%clk 0:00:06.7]} 42... hxg5 {[%clk 0:00:15.2]}
43. Kd4 {[%clk 0:00:06.8]} 43... Rc4+ {[%clk 0:00:14.4]} 44. Kd3 {[%clk
0:00:06.3]} 44... Rg4 {[%clk 0:00:13.8]} 45. b4 {[%clk 0:00:04.7]} 45... e5
{[%clk 0:00:14.1]} 46. Rc2 {[%clk 0:00:03.5]} 46... Rg3+ {[%clk 0:00:14.5]} 47.
Kd2 {[%clk 0:00:03.2]} 47... Rxa3 {[%clk 0:00:15.4]} 48. Rc7 {[%clk 0:00:03]}
48... Ra2+ {[%clk 0:00:14.3]} 49. Ke3 {[%clk 0:00:02.1]} 49... b5 {[%clk
0:00:13.9]} 50. Rc6+ {[%clk 0:00:01.7]} 50... Kf5 {[%clk 0:00:14.4]} 51. Rc5
{[%clk 0:00:02]} 51... Ra3+ {[%clk 0:00:14.9]} 52. Ke2 {[%clk 0:00:01.8]} 52...
Ra2+ {[%clk 0:00:15.1]} 53. Ke3 {[%clk 0:00:01.8]} 53... d4+ {[%clk 0:00:15.4]}
54. Kf3 {[%clk 0:00:01]} 54... Ra3+ {[%clk 0:00:15.5]} 0-1